[Event "*** Titled Tuesday Blitz"]
[Site "Chess.com"]
[Date "2020.02.04"]
[Round "3"]
[White "AndrewDGreen"]
[Black "reigningmvp"]
[Result "1-0"]
[WhiteElo "2219"]
[BlackElo "2352"]
[TimeControl "180+2"]
[EndTime "13:39:02 PST"]
[Termination "AndrewDGreen won by resignation"]

1. d4 {[%clk 0:03:01.9]} 1... e6 {[%clk 0:02:59.2]} 2. Nf3 {[%clk 0:03:02.4]}
2... d5 {[%clk 0:02:59.3]} 3. Bf4 {[%clk 0:03:02.9]} 3... Nf6 {[%clk 0:02:58.2]}
4. e3 {[%clk 0:03:02.9]} 4... c5 {[%clk 0:02:59]} 5. c3 {[%clk 0:03:03.6]} 5...
Nc6 {[%clk 0:02:59.6]} 6. Nbd2 {[%clk 0:03:04.7]} 6... Bd6 {[%clk 0:02:58.7]} 7.
Bg3 {[%clk 0:03:03.8]} 7... O-O {[%clk 0:02:57.2]} 8. Bd3 {[%clk 0:03:03.3]}
8... b6 {[%clk 0:02:57.6]} 9. e4 {[%clk 0:03:00.3]} 9... dxe4 {[%clk 0:02:25.1]}
10. Nxe4 {[%clk 0:02:59]} 10... Nxe4 {[%clk 0:02:23.9]} 11. Bxe4 {[%clk
0:02:59.4]} 11... Bb7 {[%clk 0:02:23.8]} 12. dxc5 {[%clk 0:02:55.8]} 12... Bxc5
{[%clk 0:02:23.4]} 13. Qa4 {[%clk 0:02:54.3]} 13... Na5 {[%clk 0:02:11.2]} 14.
Rd1 {[%clk 0:02:03.2]} 14... Qc8 {[%clk 0:01:57.3]} 15. Bxh7+ {[%clk 0:01:26.2]}
15... Kxh7 {[%clk 0:01:46.2]} 16. Qh4+ {[%clk 0:01:26.8]} 16... Kg8 {[%clk
0:01:25.4]} 17. Ng5 {[%clk 0:01:27.4]} 17... Rd8 {[%clk 0:01:15.6]} 18. O-O
{[%clk 0:01:11.3]} 18... Qc6 {[%clk 0:01:03]} 19. Qh7+ {[%clk 0:00:43.4]} 19...
Kf8 {[%clk 0:01:02.8]} 20. Nf3 {[%clk 0:00:37]} 20... Ke8 {[%clk 0:00:33.9]} 21.
b4 {[%clk 0:00:22.2]} 21... Bf8 {[%clk 0:00:33.9]} 22. bxa5 {[%clk 0:00:20.7]}
22... Ba6 {[%clk 0:00:30.9]} 23. Rfe1 {[%clk 0:00:20.8]} 23... Rxd1 {[%clk
0:00:30.4]} 24. Rxd1 {[%clk 0:00:22.7]} 24... Rc8 {[%clk 0:00:19.2]} 25. Qg8
{[%clk 0:00:20.6]} 25... Be2 {[%clk 0:00:11]} 26. Bd6 {[%clk 0:00:18.1]} 26...
Qxd6 {[%clk 0:00:06]} 27. Rxd6 {[%clk 0:00:18.3]} 27... Rxc3 {[%clk 0:00:07.7]}
28. h4 {[%clk 0:00:12.4]} 28... Ke7 {[%clk 0:00:06.8]} 29. Rd7+ {[%clk
0:00:09.2]} 29... Kxd7 {[%clk 0:00:07.5]} 30. Qxf8 {[%clk 0:00:09.8]} 30... Bb5
{[%clk 0:00:08.5]} 31. Qxf7+ {[%clk 0:00:09.6]} 31... Kc6 {[%clk 0:00:10.1]} 32.
Nd4+ {[%clk 0:00:08.7]} 32... Kc5 {[%clk 0:00:10.6]} 33. Nxb5 {[%clk 0:00:09.5]}
33... Kxb5 {[%clk 0:00:12.2]} 34. axb6 {[%clk 0:00:08.7]} 34... Rc1+ {[%clk
0:00:14.1]} 35. Kh2 {[%clk 0:00:09.4]} 35... axb6 {[%clk 0:00:16]} 36. Qxg7
{[%clk 0:00:10.4]} 36... Rc5 {[%clk 0:00:17.9]} 37. Qb2+ {[%clk 0:00:11]} 37...
Kc6 {[%clk 0:00:18.9]} 38. g3 {[%clk 0:00:12.3]} 38... Rf5 {[%clk 0:00:19.6]}
39. Kg2 {[%clk 0:00:13.3]} 39... Kd7 {[%clk 0:00:21]} 40. Qd2+ {[%clk
0:00:14.1]} 40... Kc7 {[%clk 0:00:22.3]} 41. Qc3+ {[%clk 0:00:15.1]} 41... Kb7
{[%clk 0:00:23.6]} 42. Qe3 {[%clk 0:00:15.2]} 42... Ra5 {[%clk 0:00:24]} 43.
Qxe6 {[%clk 0:00:15.7]} 1-0

[Event "*** Titled Tuesday Blitz"]
[Site "Chess.com"]
[Date "2020.02.04"]
[Round "3"]
[White "AleksanderHnydiuk"]
[Black "killer311"]
[Result "1-0"]
[WhiteElo "2560"]
[BlackElo "2256"]
[TimeControl "180+2"]
[EndTime "13:39:04 PST"]
[Termination "AleksanderHnydiuk won by resignation"]

1. Nf3 {[%clk 0:03:01.9]} 1... d5 {[%clk 0:03:00]} 2. d4 {[%clk 0:03:02.5]} 2...
Nf6 {[%clk 0:03:00.2]} 3. c4 {[%clk 0:03:03.3]} 3... c6 {[%clk 0:03:01.4]} 4.
Qc2 {[%clk 0:03:01]} 4... dxc4 {[%clk 0:03:01.1]} 5. Qxc4 {[%clk 0:03:02]} 5...
Bf5 {[%clk 0:02:59.4]} 6. g3 {[%clk 0:03:01.3]} 6... e6 {[%clk 0:02:59.9]} 7.
Bg2 {[%clk 0:03:02]} 7... Nbd7 {[%clk 0:03:01.2]} 8. O-O {[%clk 0:03:02.6]} 8...
Be7 {[%clk 0:03:02.3]} 9. Nc3 {[%clk 0:03:03.4]} 9... O-O {[%clk 0:03:02.9]} 10.
e3 {[%clk 0:03:04.5]} 10... Rc8 {[%clk 0:02:43]} 11. Rd1 {[%clk 0:03:05.1]}
11... Qa5 {[%clk 0:02:39.7]} 12. Qe2 {[%clk 0:02:59.2]} 12... e5 {[%clk
0:02:31.2]} 13. Bd2 {[%clk 0:02:53.8]} 13... exd4 {[%clk 0:02:27.2]} 14. Nxd4
{[%clk 0:02:51.8]} 14... Bg4 {[%clk 0:02:24.8]} 15. f3 {[%clk 0:02:51.7]} 15...
Bh5 {[%clk 0:02:21.2]} 16. e4 {[%clk 0:02:43.3]} 16... Bc5 {[%clk 0:02:18.5]}
17. Be3 {[%clk 0:02:43.4]} 17... Ne5 {[%clk 0:02:13.8]} 18. Kh1 {[%clk
0:02:32.2]} 18... Qc7 {[%clk 0:02:02.7]} 19. Rac1 {[%clk 0:02:20.9]} 19... Rfd8
{[%clk 0:01:53.5]} 20. Na4 {[%clk 0:02:14.3]} 20... Bxd4 {[%clk 0:01:46.1]} 21.
Bxd4 {[%clk 0:02:13.8]} 21... Qa5 {[%clk 0:01:29.9]} 22. Nc5 {[%clk 0:02:07.3]}
22... Rxd4 {[%clk 0:01:28]} 23. Rxd4 {[%clk 0:02:06.6]} 23... b6 {[%clk
0:01:16.4]} 24. Na4 {[%clk 0:01:30.1]} 24... c5 {[%clk 0:01:12.6]} 25. b3 {[%clk
0:01:26]} 25... Nc6 {[%clk 0:01:00.4]} 26. Rd6 {[%clk 0:01:22.3]} 26... Ne8
{[%clk 0:00:47.6]} 27. Rd7 {[%clk 0:01:15.6]} 27... Nf6 {[%clk 0:00:47]} 28. Rd6
{[%clk 0:01:14.7]} 28... Ne8 {[%clk 0:00:47.3]} 29. Rdd1 {[%clk 0:01:13]} 29...
Nc7 {[%clk 0:00:42.1]} 30. Qd2 {[%clk 0:01:12.1]} 30... Qxd2 {[%clk 0:00:41.2]}
31. Rxd2 {[%clk 0:01:14]} 31... Nd4 {[%clk 0:00:41.9]} 32. g4 {[%clk 0:01:09.1]}
32... Bg6 {[%clk 0:00:42.4]} 33. b4 {[%clk 0:01:08.8]} 33... Nce6 {[%clk
0:00:32.2]} 34. bxc5 {[%clk 0:01:08.9]} 34... bxc5 {[%clk 0:00:33.4]} 35. Nxc5
{[%clk 0:01:05.1]} 35... Rc6 {[%clk 0:00:22.7]} 36. Nb3 {[%clk 0:01:02.4]} 36...
Rxc1+ {[%clk 0:00:21]} 37. Nxc1 {[%clk 0:01:02.7]} 37... Kf8 {[%clk 0:00:22.9]}
38. f4 {[%clk 0:00:55.2]} 38... Nxf4 {[%clk 0:00:21.6]} 39. Rxd4 {[%clk
0:00:55.4]} 39... Ke7 {[%clk 0:00:21.7]} 40. Nd3 {[%clk 0:00:51.4]} 40... Ne2
{[%clk 0:00:20.7]} 41. Ra4 {[%clk 0:00:51.8]} 41... Ke6 {[%clk 0:00:21.5]} 42.
Rxa7 {[%clk 0:00:51.8]} 42... h5 {[%clk 0:00:22.2]} 43. Bf3 {[%clk 0:00:47.9]}
43... Nd4 {[%clk 0:00:22.1]} 44. Nf4+ {[%clk 0:00:47.6]} 44... Ke5 {[%clk
0:00:21.3]} 45. Nxg6+ {[%clk 0:00:46.9]} 45... fxg6 {[%clk 0:00:22.5]} 46. Kg2
{[%clk 0:00:45.8]} 1-0

[Event "*** Titled Tuesday Blitz"]
[Site "Chess.com"]
[Date "2020.02.04"]
[Round "3"]
[White "andrzej"]
[Black "bascheyaro"]
[Result "0-1"]
[WhiteElo "2357"]
[BlackElo "2813"]
[TimeControl "180+2"]
[EndTime "13:39:05 PST"]
[Termination "bascheyaro won by checkmate"]

1. d4 {[%clk 0:03:01.9]} 1... d5 {[%clk 0:03:00.4]} 2. c4 {[%clk 0:03:02.4]}
2... c6 {[%clk 0:03:01.8]} 3. cxd5 {[%clk 0:03:02.7]} 3... cxd5 {[%clk
0:03:02.9]} 4. Bf4 {[%clk 0:03:04.3]} 4... Nf6 {[%clk 0:03:04.3]} 5. e3 {[%clk
0:03:05.3]} 5... Nc6 {[%clk 0:03:05.1]} 6. Nc3 {[%clk 0:03:06.2]} 6... a6 {[%clk
0:03:06.3]} 7. Be2 {[%clk 0:03:07.3]} 7... Bf5 {[%clk 0:03:07.1]} 8. g4 {[%clk
0:03:08.9]} 8... Be4 {[%clk 0:03:01.5]} 9. Bf3 {[%clk 0:02:59.1]} 9... Bxf3
{[%clk 0:02:59.4]} 10. Nxf3 {[%clk 0:02:54.6]} 10... e6 {[%clk 0:02:56.6]} 11.
Ne5 {[%clk 0:02:29.6]} 11... Nxe5 {[%clk 0:02:55.5]} 12. dxe5 {[%clk 0:02:27.8]}
12... Nd7 {[%clk 0:02:56.4]} 13. O-O {[%clk 0:01:56.4]} 13... Bb4 {[%clk
0:02:55.2]} 14. Ne2 {[%clk 0:01:55.2]} 14... Rc8 {[%clk 0:02:54.9]} 15. Nd4
{[%clk 0:01:55.8]} 15... Bc5 {[%clk 0:02:53.7]} 16. Rc1 {[%clk 0:01:38.8]} 16...
O-O {[%clk 0:02:54]} 17. Qf3 {[%clk 0:01:38.3]} 17... Bxd4 {[%clk 0:02:52.8]}
18. exd4 {[%clk 0:01:40.2]} 18... Qb6 {[%clk 0:02:52.9]} 19. Be3 {[%clk
0:01:08.7]} 19... Rxc1 {[%clk 0:02:32.9]} 20. Rxc1 {[%clk 0:01:09.4]} 20... Qxb2
{[%clk 0:02:34.1]} 21. h4 {[%clk 0:01:08.9]} 21... Qb6 {[%clk 0:01:53.6]} 22. h5
{[%clk 0:01:06.6]} 22... f6 {[%clk 0:01:53.5]} 23. Qg3 {[%clk 0:00:58.6]} 23...
fxe5 {[%clk 0:01:50.2]} 24. dxe5 {[%clk 0:00:59.2]} 24... d4 {[%clk 0:01:50.9]}
25. Bg5 {[%clk 0:00:45.4]} 25... h6 {[%clk 0:01:51.3]} 26. Be7 {[%clk
0:00:45.7]} 26... Re8 {[%clk 0:01:50]} 27. Bd6 {[%clk 0:00:46.5]} 27... Qb5
{[%clk 0:01:47.9]} 28. Rd1 {[%clk 0:00:45.1]} 28... Qd5 {[%clk 0:01:47.2]} 29.
Qd3 {[%clk 0:00:31.9]} 29... Nxe5 {[%clk 0:01:47.3]} 30. Bxe5 {[%clk 0:00:33]}
30... Qxe5 {[%clk 0:01:48.5]} 31. Qxd4 {[%clk 0:00:34.6]} 31... Qxd4 {[%clk
0:01:29.9]} 32. Rxd4 {[%clk 0:00:36.5]} 32... Re7 {[%clk 0:01:31.4]} 33. f4
{[%clk 0:00:33.9]} 33... e5 {[%clk 0:01:32]} 34. Re4 {[%clk 0:00:31.4]} 34...
Kf7 {[%clk 0:01:31.9]} 35. fxe5 {[%clk 0:00:24.5]} 35... Ke6 {[%clk 0:01:33.2]}
36. Kf2 {[%clk 0:00:24.6]} 36... Kd5 {[%clk 0:01:34.5]} 37. Rb4 {[%clk
0:00:16.8]} 37... b5 {[%clk 0:01:35.1]} 38. a4 {[%clk 0:00:18.4]} 38... Rb7
{[%clk 0:01:30.1]} 39. axb5 {[%clk 0:00:16.3]} 39... axb5 {[%clk 0:01:31.4]} 40.
Ke3 {[%clk 0:00:13.9]} 40... Kxe5 {[%clk 0:01:32.7]} 41. Kf3 {[%clk 0:00:13.3]}
41... Kd5 {[%clk 0:01:33.6]} 42. Kf4 {[%clk 0:00:12.9]} 42... Rf7+ {[%clk
0:01:33.9]} 43. Ke3 {[%clk 0:00:13.1]} 43... Kc5 {[%clk 0:01:35.3]} 44. Rb1
{[%clk 0:00:13.7]} 44... b4 {[%clk 0:01:36.6]} 45. Rc1+ {[%clk 0:00:09.1]} 45...
Kb5 {[%clk 0:01:37.9]} 46. Rc8 {[%clk 0:00:07]} 46... Rd7 {[%clk 0:01:38.3]} 47.
Rb8+ {[%clk 0:00:06.2]} 47... Kc4 {[%clk 0:01:39.5]} 48. Rc8+ {[%clk 0:00:06.4]}
48... Kb3 {[%clk 0:01:40.9]} 49. Ke4 {[%clk 0:00:07.4]} 49... Ka2 {[%clk
0:01:41.9]} 50. Ke5 {[%clk 0:00:08.4]} 50... b3 {[%clk 0:01:42.7]} 51. Ke6
{[%clk 0:00:09.8]} 51... Rb7 {[%clk 0:01:43.8]} 52. Ra8+ {[%clk 0:00:09.1]}
52... Kb1 {[%clk 0:01:44.8]} 53. Rf8 {[%clk 0:00:09.3]} 53... b2 {[%clk
0:01:45.5]} 54. Rf1+ {[%clk 0:00:10]} 54... Ka2 {[%clk 0:01:46.3]} 55. Rf2
{[%clk 0:00:09.8]} 55... Ka3 {[%clk 0:01:47.6]} 56. Rf3+ {[%clk 0:00:07.8]}
56... Rb3 {[%clk 0:01:48.1]} 57. Rxb3+ {[%clk 0:00:08.7]} 57... Kxb3 {[%clk
0:01:50]} 58. Kf7 {[%clk 0:00:10.3]} 58... b1=Q {[%clk 0:01:51.2]} 59. Kxg7
{[%clk 0:00:12.2]} 59... Qc1 {[%clk 0:01:52.7]} 60. Kh7 {[%clk 0:00:05.8]} 60...
Qg5 {[%clk 0:01:54.6]} 61. Kh8 {[%clk 0:00:07]} 61... Kc4 {[%clk 0:01:56.5]} 62.
Kh7 {[%clk 0:00:08.7]} 62... Kd5 {[%clk 0:01:58.4]} 63. Kh8 {[%clk 0:00:10.4]}
63... Ke6 {[%clk 0:02:00.3]} 64. Kh7 {[%clk 0:00:12.3]} 64... Kf7 {[%clk
0:02:02.2]} 65. Kh8 {[%clk 0:00:14.2]} 65... Qg7# {[%clk 0:02:04.1]} 0-1

[Event "*** Titled Tuesday Blitz"]
[Site "Chess.com"]
[Date "2020.02.04"]
[Round "3"]
[White "Kimster98"]
[Black "Carnivoras"]
[Result "1/2-1/2"]
[WhiteElo "2693"]
[BlackElo "2558"]
[TimeControl "180+2"]
[EndTime "13:39:19 PST"]
[Termination "Game drawn by agreement"]

1. e4 {[%clk 0:03:00.6]} 1... e5 {[%clk 0:03:00.4]} 2. Nf3 {[%clk 0:03:02]} 2...
Nc6 {[%clk 0:03:01]} 3. Bb5 {[%clk 0:03:03.6]} 3... Nf6 {[%clk 0:03:01.6]} 4. d4
{[%clk 0:02:56.5]} 4... exd4 {[%clk 0:02:30.5]} 5. O-O {[%clk 0:02:09.9]} 5...
d6 {[%clk 0:02:26.2]} 6. Nxd4 {[%clk 0:02:10.2]} 6... Bd7 {[%clk 0:02:26.5]} 7.
Nc3 {[%clk 0:02:10.7]} 7... Be7 {[%clk 0:02:27.4]} 8. Nxc6 {[%clk 0:01:58.6]}
8... Bxc6 {[%clk 0:02:24.7]} 9. Bxc6+ {[%clk 0:01:59.4]} 9... bxc6 {[%clk
0:02:26.1]} 10. Qd3 {[%clk 0:02:00.5]} 10... O-O {[%clk 0:02:26.1]} 11. b3
{[%clk 0:01:59.5]} 11... Nd7 {[%clk 0:02:26]} 12. Be3 {[%clk 0:01:58.2]} 12...
Re8 {[%clk 0:02:24]} 13. f3 {[%clk 0:01:56.7]} 13... Bf6 {[%clk 0:02:24]} 14.
Rad1 {[%clk 0:01:57.3]} 14... Qe7 {[%clk 0:02:24.3]} 15. Ne2 {[%clk 0:01:57.5]}
15... Ne5 {[%clk 0:02:23.8]} 16. Qd2 {[%clk 0:01:58.8]} 16... g6 {[%clk
0:02:24]} 17. Nd4 {[%clk 0:01:53.1]} 17... c5 {[%clk 0:02:22.4]} 18. Ne2 {[%clk
0:01:53.5]} 18... Bg7 {[%clk 0:02:19.3]} 19. Nf4 {[%clk 0:01:53.1]} 19... Nc6
{[%clk 0:02:03.4]} 20. Nd5 {[%clk 0:01:52.9]} 20... Qd8 {[%clk 0:02:03.3]} 21.
Bh6 {[%clk 0:01:49.8]} 21... Nd4 {[%clk 0:01:55.3]} 22. Bxg7 {[%clk 0:01:41.8]}
22... Kxg7 {[%clk 0:01:57.2]} 23. c3 {[%clk 0:01:42.8]} 23... Ne6 {[%clk
0:01:57.7]} 24. Qe3 {[%clk 0:01:33.8]} 24... c6 {[%clk 0:01:45.3]} 25. Nf4
{[%clk 0:01:32.8]} 25... Qf6 {[%clk 0:01:34.2]} 26. Nxe6+ {[%clk 0:01:31.3]}
26... Rxe6 {[%clk 0:01:34.9]} 27. Rd3 {[%clk 0:01:28]} 27... a5 {[%clk
0:01:32.7]} 28. Rfd1 {[%clk 0:01:21.3]} 28... a4 {[%clk 0:01:31]} 29. Qd2 {[%clk
0:01:22.5]} 29... axb3 {[%clk 0:01:29.9]} 30. axb3 {[%clk 0:01:24.4]} 30... Rb8
{[%clk 0:01:19.5]} 31. Rxd6 {[%clk 0:01:17.1]} 31... Rxd6 {[%clk 0:01:17.3]} 32.
Qxd6 {[%clk 0:01:19]} 32... Qxd6 {[%clk 0:01:02.5]} 33. Rxd6 {[%clk 0:01:20.9]}
33... Rxb3 {[%clk 0:01:02.8]} 34. Rd3 {[%clk 0:01:20.9]} 34... c4 {[%clk
0:01:03.8]} 35. Re3 {[%clk 0:01:17.4]} 35... Rb2 {[%clk 0:01:03.1]} 36. f4
{[%clk 0:01:13]} 36... Kf6 {[%clk 0:00:59.5]} 37. Kf1 {[%clk 0:01:12.8]} 37...
Rc2 {[%clk 0:00:55.5]} 38. h3 {[%clk 0:01:07.7]} 38... Ke6 {[%clk 0:00:54.9]}
39. g4 {[%clk 0:01:06.1]} 39... c5 {[%clk 0:00:51.5]} 40. Ke1 {[%clk 0:01:06.3]}
40... f6 {[%clk 0:00:46.8]} 41. Rf3 {[%clk 0:01:00.8]} 41... Kd6 {[%clk
0:00:41.4]} 42. Kd1 {[%clk 0:00:54.5]} 42... Rh2 {[%clk 0:00:41.2]} 43. Ke1
{[%clk 0:00:53.9]} 43... Rc2 {[%clk 0:00:37.4]} 44. Re3 {[%clk 0:00:53.4]} 44...
Ke6 {[%clk 0:00:35.6]} 45. e5 {[%clk 0:00:50.4]} 45... fxe5 {[%clk 0:00:28.3]}
46. Rxe5+ {[%clk 0:00:50.6]} 46... Kf6 {[%clk 0:00:22.2]} 47. Re3 {[%clk
0:00:51]} 47... h5 {[%clk 0:00:21.6]} 48. Kf1 {[%clk 0:00:45.2]} 48... hxg4
{[%clk 0:00:21.8]} 49. hxg4 {[%clk 0:00:46.2]} 49... Kf7 {[%clk 0:00:21.1]} 50.
Rf3 {[%clk 0:00:44.6]} 50... Kf6 {[%clk 0:00:21.9]} 51. f5 {[%clk 0:00:39]}
51... gxf5 {[%clk 0:00:20.5]} 52. Rxf5+ {[%clk 0:00:40.9]} 52... Kg6 {[%clk
0:00:20.6]} 53. Rxc5 {[%clk 0:00:40.7]} 53... Rxc3 {[%clk 0:00:21.1]} 54. Ke2
{[%clk 0:00:40.7]} 54... Rc2+ {[%clk 0:00:21.2]} 1/2-1/2

[Event "*** Titled Tuesday Blitz"]
[Site "Chess.com"]
[Date "2020.02.04"]
[Round "3"]
[White "kingofthenil"]
[Black "temus_galaktionov"]
[Result "1/2-1/2"]
[WhiteElo "2484"]
[BlackElo "2698"]
[TimeControl "180+2"]
[EndTime "13:39:20 PST"]
[Termination "Game drawn by repetition"]

1. d4 {[%clk 0:03:01.9]} 1... c6 {[%clk 0:03:00.7]} 2. c4 {[%clk 0:03:02.9]}
2... g6 {[%clk 0:03:02.6]} 3. Nc3 {[%clk 0:03:03.7]} 3... Bg7 {[%clk 0:03:04.5]}
4. e4 {[%clk 0:03:04.2]} 4... d6 {[%clk 0:03:06.4]} 5. Nf3 {[%clk 0:02:39.7]}
5... Nd7 {[%clk 0:03:07.2]} 6. Be2 {[%clk 0:02:40.2]} 6... e5 {[%clk 0:03:08.6]}
7. O-O {[%clk 0:02:42.1]} 7... Ngf6 {[%clk 0:03:09.5]} 8. Qc2 {[%clk 0:02:25.9]}
8... O-O {[%clk 0:03:09.6]} 9. Be3 {[%clk 0:02:27]} 9... Ng4 {[%clk 0:03:07.8]}
10. Bg5 {[%clk 0:02:28]} 10... f6 {[%clk 0:03:07.2]} 11. Bd2 {[%clk 0:02:27.6]}
11... Qe7 {[%clk 0:03:08.2]} 12. b4 {[%clk 0:02:18.2]} 12... h5 {[%clk
0:03:05.8]} 13. Qb3 {[%clk 0:02:07.1]} 13... Kh7 {[%clk 0:03:04.7]} 14. Rad1
{[%clk 0:01:57.7]} 14... Nh6 {[%clk 0:02:51.2]} 15. Bc1 {[%clk 0:01:57.3]} 15...
g5 {[%clk 0:02:49.3]} 16. c5 {[%clk 0:01:49.1]} 16... dxc5 {[%clk 0:02:48.6]}
17. dxc5 {[%clk 0:01:32.6]} 17... a5 {[%clk 0:02:40.8]} 18. a3 {[%clk
0:01:31.5]} 18... Nb8 {[%clk 0:02:41.7]} 19. Ne1 {[%clk 0:01:18.2]} 19... Be6
{[%clk 0:02:38.9]} 20. Bc4 {[%clk 0:01:18.6]} 20... Bxc4 {[%clk 0:02:39.7]} 21.
Qxc4 {[%clk 0:01:20.5]} 21... Na6 {[%clk 0:02:40.6]} 22. Nc2 {[%clk 0:01:17]}
22... axb4 {[%clk 0:02:39.5]} 23. axb4 {[%clk 0:01:16.5]} 23... Qf7 {[%clk
0:02:38.4]} 24. Qe2 {[%clk 0:01:05.7]} 24... Rad8 {[%clk 0:02:27.9]} 25. Rxd8
{[%clk 0:01:04.3]} 25... Rxd8 {[%clk 0:02:28.8]} 26. Rd1 {[%clk 0:01:06.2]}
26... Rxd1+ {[%clk 0:02:27.6]} 27. Qxd1 {[%clk 0:01:08.1]} 27... Qb3 {[%clk
0:02:27.4]} 28. Bd2 {[%clk 0:01:00.1]} 28... Nxb4 {[%clk 0:02:06.1]} 29. Nxb4
{[%clk 0:01:02]} 29... Qxb4 {[%clk 0:02:07.8]} 30. Qxh5 {[%clk 0:01:03.9]} 30...
Qxc5 {[%clk 0:02:05.7]} 31. h4 {[%clk 0:01:05.1]} 31... Qd4 {[%clk 0:01:39.9]}
32. hxg5 {[%clk 0:00:41.5]} 32... Qxd2 {[%clk 0:01:40.6]} 33. gxh6 {[%clk
0:00:42.5]} 33... Qc1+ {[%clk 0:01:40.4]} 34. Nd1 {[%clk 0:00:41.9]} 34... Qxh6
{[%clk 0:01:41]} 35. Qf5+ {[%clk 0:00:43.2]} 35... Qg6 {[%clk 0:01:41.7]} 36.
Qh3+ {[%clk 0:00:43.2]} 36... Kg8 {[%clk 0:01:40.6]} 37. Qc8+ {[%clk 0:00:43.3]}
37... Bf8 {[%clk 0:01:41.5]} 38. Ne3 {[%clk 0:00:19.8]} 38... Qxe4 {[%clk
0:01:05.7]} 39. Qe6+ {[%clk 0:00:20.4]} 39... Kh7 {[%clk 0:00:58.1]} 40. Qf7+
{[%clk 0:00:19.6]} 40... Bg7 {[%clk 0:00:53.5]} 41. Qh5+ {[%clk 0:00:20.7]}
41... Kg8 {[%clk 0:00:54.5]} 42. Qe8+ {[%clk 0:00:22.1]} 42... Kh7 {[%clk
0:00:55.1]} 43. Qh5+ {[%clk 0:00:22.7]} 43... Kg8 {[%clk 0:00:54.6]} 44. Nf5
{[%clk 0:00:17.3]} 44... Qe1+ {[%clk 0:00:44.7]} 45. Kh2 {[%clk 0:00:18]} 45...
Qc1 {[%clk 0:00:45]} 46. Qe8+ {[%clk 0:00:15.3]} 46... Kh7 {[%clk 0:00:46]} 47.
Qh5+ {[%clk 0:00:16]} 47... Kg8 {[%clk 0:00:46.5]} 48. Qe8+ {[%clk 0:00:09.5]}
48... Kh7 {[%clk 0:00:47.3]} 49. Qh5+ {[%clk 0:00:09.6]} 49... Kg8 {[%clk
0:00:48.1]} 1/2-1/2

[Event "*** Titled Tuesday Blitz"]
[Site "Chess.com"]
[Date "2020.02.04"]
[Round "3"]
[White "catalin009"]
[Black "GianmarcoVaR"]
[Result "1-0"]
[WhiteElo "2454"]
[BlackElo "2619"]
[TimeControl "180+2"]
[EndTime "13:39:20 PST"]
[Termination "catalin009 won by resignation"]

1. Nf3 {[%clk 0:03:01.9]} 1... Nf6 {[%clk 0:02:49.8]} 2. g3 {[%clk 0:03:03.1]}
2... d5 {[%clk 0:02:48.2]} 3. Bg2 {[%clk 0:03:04.3]} 3... Bg4 {[%clk 0:02:47.2]}
4. O-O {[%clk 0:03:04.8]} 4... c6 {[%clk 0:02:44.2]} 5. d3 {[%clk 0:03:05.3]}
5... Nbd7 {[%clk 0:02:44.5]} 6. Qe1 {[%clk 0:03:06.5]} 6... e5 {[%clk
0:02:42.2]} 7. e4 {[%clk 0:03:07.7]} 7... dxe4 {[%clk 0:02:43]} 8. dxe4 {[%clk
0:03:09.6]} 8... Qc7 {[%clk 0:02:39.8]} 9. Nbd2 {[%clk 0:03:04.9]} 9... a5
{[%clk 0:02:32.4]} 10. a4 {[%clk 0:02:53.4]} 10... Nc5 {[%clk 0:02:31]} 11. b3
{[%clk 0:02:51.5]} 11... Nfd7 {[%clk 0:02:26.6]} 12. h3 {[%clk 0:02:49]} 12...
Bh5 {[%clk 0:02:25.1]} 13. Bb2 {[%clk 0:02:33.8]} 13... f6 {[%clk 0:02:26.3]}
14. Nh4 {[%clk 0:02:30]} 14... Ne6 {[%clk 0:02:24.3]} 15. Nf5 {[%clk 0:02:27]}
15... Bf7 {[%clk 0:01:59.7]} 16. Qe3 {[%clk 0:02:00.6]} 16... Bc5 {[%clk
0:01:57.4]} 17. Qf3 {[%clk 0:01:59.4]} 17... O-O {[%clk 0:01:51.1]} 18. Nc4
{[%clk 0:01:54.2]} 18... Ng5 {[%clk 0:01:18.4]} 19. Qe2 {[%clk 0:01:48.4]} 19...
Rfd8 {[%clk 0:01:16.1]} 20. Kh1 {[%clk 0:01:25.3]} 20... Nb6 {[%clk 0:01:06.4]}
21. Nce3 {[%clk 0:01:07.2]} 21... Ne6 {[%clk 0:01:03.2]} 22. Qg4 {[%clk
0:01:05.3]} 22... Kh8 {[%clk 0:00:53.4]} 23. f4 {[%clk 0:00:56.6]} 23... exf4
{[%clk 0:00:08.2]} 24. gxf4 {[%clk 0:00:51.9]} 24... Bg6 {[%clk 0:00:04.6]} 25.
e5 {[%clk 0:00:35.8]} 25... fxe5 {[%clk 0:00:05.7]} 26. Bxe5 {[%clk 0:00:35.2]}
26... Qf7 {[%clk 0:00:06.3]} 27. Rae1 {[%clk 0:00:12.9]} 27... Bxe3 {[%clk
0:00:03.7]} 28. Nxe3 {[%clk 0:00:13.2]} 28... Bh5 {[%clk 0:00:05.2]} 29. Qg3
{[%clk 0:00:10.2]} 29... Nd7 {[%clk 0:00:06.4]} 30. Bb2 {[%clk 0:00:10]} 30...
Nf6 {[%clk 0:00:07.5]} 31. Nf5 {[%clk 0:00:08.7]} 31... Rd2 {[%clk 0:00:05.5]}
32. Rxe6 {[%clk 0:00:09.2]} 32... Bg6 {[%clk 0:00:05.9]} 33. Nxg7 {[%clk
0:00:07]} 33... Rxg2 {[%clk 0:00:02.9]} 34. Qxg2 {[%clk 0:00:06.6]} 34... Be4
{[%clk 0:00:02.1]} 35. Rxe4 {[%clk 0:00:04.4]} 35... Qxg7 {[%clk 0:00:03.1]} 36.
Qxg7+ {[%clk 0:00:05.2]} 36... Kxg7 {[%clk 0:00:05]} 37. Re6 {[%clk 0:00:06.8]}
37... Kf8 {[%clk 0:00:06.6]} 38. Rxf6+ {[%clk 0:00:08.3]} 38... Kg7 {[%clk
0:00:07.7]} 39. Rg1+ {[%clk 0:00:09.5]} 1-0